[Event "*** Titled Tuesday 3|2 Blitz"]
[Site "Chess.com"]
[Date "2014.12.30"]
[Round "2"]
[White "DrHolmes13"]
[Black "MikePerelshteyn"]
[Result "0-1"]
[WhiteElo "2170"]
[BlackElo "1964"]
[TimeControl "180+2"]
[EndTime "11:24:22 PST"]
[Termination "MikePerelshteyn won by resignation"]

1. Nf3 {[%clk 0:03:00]} 1... c6 {[%clk 0:02:59]} 2. g3 {[%clk 0:03:00.1]} 2...
d6 {[%clk 0:02:59.8]} 3. Bg2 {[%clk 0:03:01.8]} 3... Nf6 {[%clk 0:03:01.1]} 4.
O-O {[%clk 0:03:02.1]} 4... g6 {[%clk 0:03:02.4]} 5. d4 {[%clk 0:03:02.2]} 5...
Bg7 {[%clk 0:03:03.7]} 6. b3 {[%clk 0:03:03.7]} 6... O-O {[%clk 0:03:04.8]} 7.
Bb2 {[%clk 0:03:05.3]} 7... a5 {[%clk 0:03:03.2]} 8. c4 {[%clk 0:03:05.5]} 8...
Bf5 {[%clk 0:02:58.2]} 9. Nc3 {[%clk 0:03:04.3]} 9... Ne4 {[%clk 0:02:58.3]} 10.
Nh4 {[%clk 0:03:00.8]} 10... Nxc3 {[%clk 0:02:57.3]} 11. Bxc3 {[%clk 0:03:01.8]}
11... Be6 {[%clk 0:02:52.6]} 12. Qd2 {[%clk 0:02:55.8]} 12... d5 {[%clk
0:02:49.7]} 13. c5 {[%clk 0:02:47.1]} 13... Nd7 {[%clk 0:02:43.4]} 14. Rfe1
{[%clk 0:02:43.6]} 14... b6 {[%clk 0:02:43.6]} 15. cxb6 {[%clk 0:02:42.6]} 15...
Qxb6 {[%clk 0:02:43.3]} 16. Nf3 {[%clk 0:02:43.5]} 16... Bf5 {[%clk 0:02:34.5]}
17. Nh4 {[%clk 0:02:39.4]} 17... Be6 {[%clk 0:02:33.9]} 18. Nf3 {[%clk 0:02:37]}
18... Bf5 {[%clk 0:02:34.7]} 19. Rac1 {[%clk 0:02:13.1]} 19... a4 {[%clk
0:02:31.7]} 20. Bb4 {[%clk 0:02:11.3]} 20... Rfe8 {[%clk 0:02:28.9]} 21. Nh4
{[%clk 0:02:10.1]} 21... Bxd4 {[%clk 0:01:55.7]} 22. e3 {[%clk 0:02:09.6]} 22...
Bf6 {[%clk 0:01:51.1]} 23. Nxf5 {[%clk 0:02:09.4]} 23... gxf5 {[%clk 0:01:52.2]}
24. Bc3 {[%clk 0:01:47.3]} 24... e6 {[%clk 0:01:48.2]} 25. Bxf6 {[%clk
0:01:42.2]} 25... Nxf6 {[%clk 0:01:48.9]} 26. Rc3 {[%clk 0:01:43.9]} 26... Ne4
{[%clk 0:01:27.8]} 27. Bxe4 {[%clk 0:01:44.2]} 27... fxe4 {[%clk 0:01:29.1]} 28.
Rec1 {[%clk 0:01:45.8]} 28... Rec8 {[%clk 0:01:27.6]} 29. Qc2 {[%clk 0:01:46.2]}
29... axb3 {[%clk 0:01:23.9]} 30. axb3 {[%clk 0:01:46.8]} 30... Ra3 {[%clk
0:01:08.3]} 31. h4 {[%clk 0:01:40.9]} 31... c5 {[%clk 0:01:03.1]} 32. h5 {[%clk
0:01:35.7]} 32... h6 {[%clk 0:00:58.8]} 33. Qb2 {[%clk 0:01:25.1]} 33... Qb4
{[%clk 0:00:48.7]} 34. Qe2 {[%clk 0:01:08.1]} 34... Rxb3 {[%clk 0:00:35.9]} 35.
Qg4+ {[%clk 0:01:09.1]} 35... Kf8 {[%clk 0:00:36.3]} 36. Rxb3 {[%clk 0:01:06.3]}
36... Qxb3 {[%clk 0:00:37.2]} 37. Qf4 {[%clk 0:01:07.7]} 37... Qb2 {[%clk
0:00:35.4]} 38. Rxc5 {[%clk 0:00:55.3]} 38... Rxc5 {[%clk 0:00:33.1]} 39. Qd6+
{[%clk 0:00:56.5]} 39... Kg7 {[%clk 0:00:33.6]} 40. Qxc5 {[%clk 0:00:57.8]}
40... Qe5 {[%clk 0:00:32]} 41. Qc1 {[%clk 0:00:43.8]} 41... Qxh5 {[%clk
0:00:32.4]} 42. Qc3+ {[%clk 0:00:45]} 42... Kg6 {[%clk 0:00:31.7]} 43. Qh8
{[%clk 0:00:44.4]} 43... Qg5 {[%clk 0:00:21.1]} 44. Qg8+ {[%clk 0:00:43.6]}
44... Kf6 {[%clk 0:00:21.1]} 45. Qf8 {[%clk 0:00:40.9]} 45... h5 {[%clk
0:00:11.2]} 46. Qh8+ {[%clk 0:00:40.7]} 46... Ke7 {[%clk 0:00:08.4]} 47. Kf1
{[%clk 0:00:41.1]} 47... Qf5 {[%clk 0:00:09.3]} 48. Kg1 {[%clk 0:00:39.9]} 48...
Qg6 {[%clk 0:00:10.5]} 49. Kf1 {[%clk 0:00:40]} 49... Qf5 {[%clk 0:00:11.8]} 50.
Kg1 {[%clk 0:00:41]} 50... e5 {[%clk 0:00:13.2]} 51. Kf1 {[%clk 0:00:34.2]}
51... Qg5 {[%clk 0:00:12.5]} 52. Kg1 {[%clk 0:00:31.5]} 52... Kd7 {[%clk
0:00:13]} 53. Kf1 {[%clk 0:00:30.7]} 53... Ke7 {[%clk 0:00:13.3]} 54. Kg1 {[%clk
0:00:31.2]} 54... Ke6 {[%clk 0:00:13.9]} 55. Kf1 {[%clk 0:00:30.3]} 55... Kf5
{[%clk 0:00:14.9]} 56. Qc8+ {[%clk 0:00:28.9]} 56... Kg6 {[%clk 0:00:16.1]} 57.
Qg8+ {[%clk 0:00:29.6]} 57... Kf6 {[%clk 0:00:17.3]} 58. Qd8+ {[%clk 0:00:29.9]}
58... Kg6 {[%clk 0:00:17.9]} 59. Qxd5 {[%clk 0:00:26.9]} 59... Qf5 {[%clk
0:00:14]} 60. Qd8 {[%clk 0:00:25.7]} 60... Kg7 {[%clk 0:00:13.6]} 61. Qh4 {[%clk
0:00:25]} 61... Qg4 {[%clk 0:00:12.6]} 62. Qe7 {[%clk 0:00:25.3]} 62... Qf5
{[%clk 0:00:12.5]} 63. Kg1 {[%clk 0:00:24.7]} 63... Kg6 {[%clk 0:00:11.4]} 64.
Qd8 {[%clk 0:00:24.2]} 64... Kg7 {[%clk 0:00:12.4]} 65. Qh4 {[%clk 0:00:24.3]}
65... Qg4 {[%clk 0:00:11.1]} 66. Qe7 {[%clk 0:00:24.5]} 66... h4 {[%clk
0:00:11.6]} 67. Qxh4 {[%clk 0:00:20.9]} 67... Qxh4 {[%clk 0:00:12.5]} 68. gxh4
{[%clk 0:00:21.8]} 68... Kg6 {[%clk 0:00:12.5]} 69. Kg2 {[%clk 0:00:23]} 69...
Kh5 {[%clk 0:00:13.4]} 70. Kh3 {[%clk 0:00:22.3]} 70... f6 {[%clk 0:00:14.4]}
71. Kg3 {[%clk 0:00:22.9]} 71... f5 {[%clk 0:00:15.8]} 72. Kh3 {[%clk 0:00:24]}
72... f4 {[%clk 0:00:17.3]} 73. Kg2 {[%clk 0:00:16.1]} 73... Kxh4 {[%clk
0:00:18.3]} 74. Kh2 {[%clk 0:00:17.2]} 74... Kg4 {[%clk 0:00:18.8]} 75. Kg2
{[%clk 0:00:18.5]} 75... Kf5 {[%clk 0:00:19.9]} 76. Kh3 {[%clk 0:00:19.9]} 76...
Kg5 {[%clk 0:00:20.3]} 77. Kg2 {[%clk 0:00:16.8]} 77... fxe3 {[%clk 0:00:20]}
78. fxe3 {[%clk 0:00:17.4]} 78... Kg4 {[%clk 0:00:21.5]} 79. Kf2 {[%clk
0:00:18.4]} 79... Kh3 {[%clk 0:00:22.8]} 80. Ke2 {[%clk 0:00:19.9]} 80... Kg2
{[%clk 0:00:23.7]} 81. Kd2 {[%clk 0:00:21.3]} 81... Kf2 {[%clk 0:00:24.9]} 82.
Kd1 {[%clk 0:00:22.9]} 82... Kxe3 {[%clk 0:00:26]} 83. Ke1 {[%clk 0:00:24.6]}
83... Kf3 {[%clk 0:00:27.2]} 84. Kf1 {[%clk 0:00:25.4]} 84... e3 {[%clk
0:00:23.2]} 85. Ke1 {[%clk 0:00:26.8]} 85... e2 {[%clk 0:00:24.1]} 86. Kd2
{[%clk 0:00:27.6]} 86... Kf2 {[%clk 0:00:25.3]} 0-1

[Event "*** Titled Tuesday 3|2 Blitz"]
[Site "Chess.com"]
[Date "2014.12.30"]
[Round "2"]
[White "Gevorg_Harutjunyan"]
[Black "FlySooHigh"]
[Result "1/2-1/2"]
[WhiteElo "2426"]
[BlackElo "2364"]
[TimeControl "180+2"]
[EndTime "11:25:00 PST"]
[Termination "Game drawn by repetition"]

1. e4 {[%clk 0:03:00]} 1... d5 {[%clk 0:02:58.4]} 2. exd5 {[%clk 0:03:00.7]}
2... Nf6 {[%clk 0:02:59.4]} 3. d4 {[%clk 0:02:59.3]} 3... Nxd5 {[%clk
0:02:59.8]} 4. Nf3 {[%clk 0:03:00.2]} 4... g6 {[%clk 0:02:59.7]} 5. Ne5 {[%clk
0:02:58.6]} 5... Bg7 {[%clk 0:02:54.6]} 6. Bc4 {[%clk 0:02:58.6]} 6... O-O
{[%clk 0:02:53.7]} 7. O-O {[%clk 0:02:59.6]} 7... Nb6 {[%clk 0:02:41]} 8. Be2
{[%clk 0:02:47.9]} 8... N8d7 {[%clk 0:02:29.5]} 9. Nxd7 {[%clk 0:02:34.6]} 9...
Qxd7 {[%clk 0:02:23.5]} 10. c3 {[%clk 0:02:33.6]} 10... e5 {[%clk 0:02:21.7]}
11. dxe5 {[%clk 0:02:28.2]} 11... Qxd1 {[%clk 0:02:18.2]} 12. Rxd1 {[%clk
0:02:27.8]} 12... Bxe5 {[%clk 0:02:20.1]} 13. Bh6 {[%clk 0:02:27.8]} 13... Re8
{[%clk 0:02:14.7]} 14. Bf3 {[%clk 0:02:28.7]} 14... c6 {[%clk 0:02:14.7]} 15.
Nd2 {[%clk 0:02:25.8]} 15... Bf5 {[%clk 0:02:13.2]} 16. Nb3 {[%clk 0:02:06.6]}
16... Na4 {[%clk 0:02:10.9]} 17. Rd2 {[%clk 0:01:59]} 17... Rad8 {[%clk
0:02:07.1]} 18. Nd4 {[%clk 0:01:42.9]} 18... Bc8 {[%clk 0:01:59.8]} 19. g3
{[%clk 0:00:53.8]} 19... c5 {[%clk 0:01:57.1]} 20. Nb5 {[%clk 0:00:44.2]} 20...
Rxd2 {[%clk 0:01:53.2]} 21. Bxd2 {[%clk 0:00:46.1]} 21... Nxb2 {[%clk
0:01:54.1]} 22. Nxa7 {[%clk 0:00:47.2]} 22... Nc4 {[%clk 0:01:45.6]} 23. Be1
{[%clk 0:00:48.1]} 23... Be6 {[%clk 0:01:23.4]} 24. Nb5 {[%clk 0:00:36.8]} 24...
b6 {[%clk 0:01:19.7]} 25. Rd1 {[%clk 0:00:36.9]} 25... Kf8 {[%clk 0:01:14.5]}
26. h4 {[%clk 0:00:30.4]} 26... h5 {[%clk 0:01:14.2]} 27. Bc6 {[%clk 0:00:24.3]}
27... Rc8 {[%clk 0:01:10.2]} 28. Bb7 {[%clk 0:00:24.6]} 28... Rb8 {[%clk
0:01:10.5]} 29. Bc6 {[%clk 0:00:24.2]} 29... Ke7 {[%clk 0:01:10.6]} 30. Bf3
{[%clk 0:00:22.5]} 30... Rd8 {[%clk 0:01:06.1]} 31. Rxd8 {[%clk 0:00:21.5]}
31... Kxd8 {[%clk 0:01:08]} 32. a4 {[%clk 0:00:20.8]} 32... Nb2 {[%clk
0:01:04.1]} 33. Na7 {[%clk 0:00:22.1]} 33... Bf6 {[%clk 0:00:54.6]} 34. Bc6
{[%clk 0:00:21.3]} 34... Kc7 {[%clk 0:00:48.7]} 35. Bb5 {[%clk 0:00:21.4]} 35...
Bd5 {[%clk 0:00:46]} 36. Be2 {[%clk 0:00:14.4]} 36... Bb3 {[%clk 0:00:40.6]} 37.
Nb5+ {[%clk 0:00:15.4]} 37... Kd7 {[%clk 0:00:40.6]} 38. g4 {[%clk 0:00:14.9]}
38... hxg4 {[%clk 0:00:38.3]} 39. Bxg4+ {[%clk 0:00:16.8]} 39... Ke7 {[%clk
0:00:36.6]} 40. Nc7 {[%clk 0:00:10.9]} 40... Bxh4 {[%clk 0:00:34.7]} 41. Bf3
{[%clk 0:00:10.2]} 41... Kd6 {[%clk 0:00:29.9]} 42. Nb5+ {[%clk 0:00:09.9]}
42... Ke5 {[%clk 0:00:30.9]} 43. c4 {[%clk 0:00:09.6]} 43... Nxa4 {[%clk
0:00:26.5]} 44. Bd5 {[%clk 0:00:08.1]} 44... f5 {[%clk 0:00:25.5]} 45. f4+
{[%clk 0:00:09.5]} 45... Kxf4 {[%clk 0:00:26.4]} 46. Bxh4 {[%clk 0:00:11.3]}
46... Nb2 {[%clk 0:00:25.6]} 47. Nd6 {[%clk 0:00:12.2]} 47... Ke5 {[%clk
0:00:23.2]} 48. Nf7+ {[%clk 0:00:13.1]} 48... Kf4 {[%clk 0:00:20.3]} 49. Bg5+
{[%clk 0:00:13.6]} 49... Kg4 {[%clk 0:00:20.7]} 50. Bf6 {[%clk 0:00:13.9]} 50...
Nd3 {[%clk 0:00:20.1]} 51. Bd8 {[%clk 0:00:09.2]} 51... b5 {[%clk 0:00:19.9]}
52. Nd6 {[%clk 0:00:10.5]} 52... bxc4 {[%clk 0:00:19.9]} 53. Nxc4 {[%clk
0:00:10.8]} 53... Nc1 {[%clk 0:00:09.8]} 54. Ne3+ {[%clk 0:00:09.8]} 54... Kf4
{[%clk 0:00:09.9]} 55. Ng2+ {[%clk 0:00:11.1]} 55... Kg4 {[%clk 0:00:10.3]} 56.
Bc6 {[%clk 0:00:10.6]} 56... Ne2+ {[%clk 0:00:08.9]} 57. Kf2 {[%clk 0:00:11.4]}
57... Nd4 {[%clk 0:00:10.8]} 58. Ne3+ {[%clk 0:00:11.8]} 58... Kf4 {[%clk
0:00:11.5]} 59. Bg2 {[%clk 0:00:12.7]} 59... Bc2 {[%clk 0:00:10.4]} 60. Nd5+
{[%clk 0:00:11.3]} 60... Ke5 {[%clk 0:00:10.1]} 61. Ne3 {[%clk 0:00:10.5]} 61...
Be4 {[%clk 0:00:10.6]} 62. Bf1 {[%clk 0:00:10.6]} 62... Kf4 {[%clk 0:00:08.6]}
63. Bb6 {[%clk 0:00:11]} 63... Ne6 {[%clk 0:00:08.3]} 64. Bc4 {[%clk 0:00:12.2]}
64... Ke5 {[%clk 0:00:09]} 65. Ba7 {[%clk 0:00:10.4]} 65... g5 {[%clk
0:00:09.6]} 66. Bb8+ {[%clk 0:00:10.9]} 66... Kf6 {[%clk 0:00:11.3]} 67. Nd5+
{[%clk 0:00:11.1]} 67... Kg6 {[%clk 0:00:09.7]} 68. Ne7+ {[%clk 0:00:09.4]}
68... Kf6 {[%clk 0:00:10.7]} 69. Ng8+ {[%clk 0:00:10.7]} 69... Kf7 {[%clk
0:00:10.9]} 70. Be5 {[%clk 0:00:09.2]} 70... Kxg8 {[%clk 0:00:11]} 71. Bxe6+
{[%clk 0:00:10.5]} 71... Kh7 {[%clk 0:00:12.9]} 72. Bd6 {[%clk 0:00:12.1]} 72...
Kg6 {[%clk 0:00:13]} 73. Bxc5 {[%clk 0:00:13.5]} 73... Bd3 {[%clk 0:00:14]} 74.
Ke3 {[%clk 0:00:14.3]} 74... Be4 {[%clk 0:00:14.8]} 75. Kd4 {[%clk 0:00:15.9]}
75... Bc2 {[%clk 0:00:15.7]} 76. Ke5 {[%clk 0:00:17.2]} 76... Be4 {[%clk
0:00:16.7]} 77. Bd7 {[%clk 0:00:17.5]} 77... Bc2 {[%clk 0:00:17.7]} 78. Be8+
{[%clk 0:00:18.9]} 78... Kg7 {[%clk 0:00:17.1]} 79. Ke6 {[%clk 0:00:20]} 79...
f4 {[%clk 0:00:16.9]} 80. Bd4+ {[%clk 0:00:20.4]} 80... Kh6 {[%clk 0:00:16]} 81.
Bc6 {[%clk 0:00:21.7]} 81... g4 {[%clk 0:00:16.5]} 82. Be5 {[%clk 0:00:19.1]}
82... Kg5 {[%clk 0:00:17]} 83. Bf6+ {[%clk 0:00:20.6]} 83... Kh6 {[%clk
0:00:17.1]} 84. Be5 {[%clk 0:00:18.2]} 84... Kg5 {[%clk 0:00:17.9]} 85. Bf6+
{[%clk 0:00:19]} 85... Kh6 {[%clk 0:00:19]} 86. Be5 {[%clk 0:00:15.2]} 86... Kg5
{[%clk 0:00:19.9]} 87. Bf6+ {[%clk 0:00:15.7]} 87... Kh6 {[%clk 0:00:21]} 88.
Be5 {[%clk 0:00:16.2]} 88... Kg5 {[%clk 0:00:22]} 89. Bf6+ {[%clk 0:00:13.6]}
89... Kh6 {[%clk 0:00:23]} 1/2-1/2

[Event "*** Titled Tuesday 3|2 Blitz"]
[Site "Chess.com"]
[Date "2014.12.30"]
[Round "2"]
[White "mortalbovine"]
[Black "Philofive"]
[Result "0-1"]
[WhiteElo "1581"]
[BlackElo "2274"]
[TimeControl "180+2"]
[EndTime "11:25:41 PST"]
[Termination "Philofive won by resignation"]

1. d4 {[%clk 0:03:00]} 1... Nf6 {[%clk 0:02:58.2]} 2. c4 {[%clk 0:02:58.1]} 2...
g6 {[%clk 0:02:58.9]} 3. Nc3 {[%clk 0:02:55.3]} 3... Bg7 {[%clk 0:02:59.8]} 4.
e4 {[%clk 0:02:52.7]} 4... d6 {[%clk 0:03:00.6]} 5. Nf3 {[%clk 0:02:49.6]} 5...
O-O {[%clk 0:03:01.5]} 6. Be3 {[%clk 0:02:43.3]} 6... Ng4 {[%clk 0:02:51.9]} 7.
Be2 {[%clk 0:02:32.3]} 7... Nxe3 {[%clk 0:02:42]} 8. fxe3 {[%clk 0:02:34.2]}
8... Bh6 {[%clk 0:02:26.5]} 9. Qd3 {[%clk 0:02:28.2]} 9... Nc6 {[%clk 0:02:24]}
10. O-O {[%clk 0:02:28.2]} 10... e5 {[%clk 0:02:19.4]} 11. d5 {[%clk 0:02:16.4]}
11... Nb4 {[%clk 0:02:17.8]} 12. Qd2 {[%clk 0:02:14.1]} 12... a5 {[%clk
0:02:18.5]} 13. a3 {[%clk 0:02:13.1]} 13... Na6 {[%clk 0:02:19]} 14. Bd3 {[%clk
0:01:57.2]} 14... Nc5 {[%clk 0:02:15.8]} 15. Rae1 {[%clk 0:01:53]} 15... a4
{[%clk 0:02:09.9]} 16. Bc2 {[%clk 0:01:46]} 16... Bd7 {[%clk 0:02:09.8]} 17. Qf2
{[%clk 0:01:40.7]} 17... Ra6 {[%clk 0:01:52.9]} 18. Bb1 {[%clk 0:01:20.1]} 18...
Qe7 {[%clk 0:01:50.5]} 19. Re2 {[%clk 0:01:18.7]} 19... Rb6 {[%clk 0:01:47.7]}
20. Rc2 {[%clk 0:01:17.4]} 20... Nd3 {[%clk 0:01:31.4]} 21. Qe2 {[%clk
0:01:10.9]} 21... Nc5 {[%clk 0:01:32.2]} 22. Qf2 {[%clk 0:01:11.7]} 22... Kg7
{[%clk 0:01:26.5]} 23. Qe2 {[%clk 0:01:10.8]} 23... Qd8 {[%clk 0:01:20.3]} 24.
Qf2 {[%clk 0:01:11.6]} 24... Ra6 {[%clk 0:01:21.5]} 25. Kh1 {[%clk 0:01:11.3]}
25... Ra8 {[%clk 0:01:22.5]} 26. Kg1 {[%clk 0:01:12]} 26... Qb8 {[%clk
0:01:23.5]} 27. Kh1 {[%clk 0:01:13]} 27... Qa7 {[%clk 0:01:24.8]} 28. Re1 {[%clk
0:01:08.6]} 28... Rae8 {[%clk 0:01:25.5]} 29. Rd2 {[%clk 0:01:01.7]} 29... Qb8
{[%clk 0:01:26.5]} 30. Kg1 {[%clk 0:01:01.3]} 30... Qd8 {[%clk 0:01:27.5]} 31.
Kh1 {[%clk 0:01:02.3]} 31... Kh8 {[%clk 0:01:28.1]} 32. Kg1 {[%clk 0:01:03.4]}
32... f5 {[%clk 0:01:27.8]} 33. Kh1 {[%clk 0:00:55.2]} 33... f4 {[%clk
0:01:25.1]} 34. exf4 {[%clk 0:00:49.4]} 34... Rxf4 {[%clk 0:01:25.8]} 35. Rde2
{[%clk 0:00:47.2]} 35... Ref8 {[%clk 0:01:25.6]} 36. Qg3 {[%clk 0:00:44.5]}
36... Qf6 {[%clk 0:01:15.7]} 37. Rf1 {[%clk 0:00:35]} 37... Kg7 {[%clk
0:01:00.6]} 38. Rfe1 {[%clk 0:00:34]} 38... Bg4 {[%clk 0:00:55]} 39. Rf1 {[%clk
0:00:29.9]} 39... Bxf3 {[%clk 0:00:52.2]} 40. gxf3 {[%clk 0:00:31.8]} 40... Rxf3
{[%clk 0:00:53]} 41. Rxf3 {[%clk 0:00:31.1]} 41... Qxf3+ {[%clk 0:00:53.8]} 42.
Qxf3 {[%clk 0:00:32.1]} 42... Rxf3 {[%clk 0:00:55.2]} 43. Kg2 {[%clk 0:00:33.4]}
43... Re3 {[%clk 0:00:30.4]} 44. Rxe3 {[%clk 0:00:28.1]} 44... Bxe3 {[%clk
0:00:30.9]} 45. Bc2 {[%clk 0:00:29.5]} 45... Bd4 {[%clk 0:00:32.4]} 46. Nxa4
{[%clk 0:00:25.7]} 46... Nxa4 {[%clk 0:00:33.5]} 47. Bxa4 {[%clk 0:00:27.6]}
47... Bxb2 {[%clk 0:00:35.1]} 48. Bd7 {[%clk 0:00:25.4]} 48... Bxa3 {[%clk
0:00:35.9]} 49. Bc8 {[%clk 0:00:25.9]} 49... b6 {[%clk 0:00:36.2]} 50. Kf3
{[%clk 0:00:26.4]} 50... Kf6 {[%clk 0:00:37.2]} 51. Be6 {[%clk 0:00:26.6]} 51...
Kg5 {[%clk 0:00:38.1]} 52. Bd7 {[%clk 0:00:25.5]} 52... Kh4 {[%clk 0:00:38.5]}
53. Bg4 {[%clk 0:00:25.5]} 53... Bc1 {[%clk 0:00:39.2]} 54. Bd7 {[%clk
0:00:26.5]} 54... Bf4 {[%clk 0:00:39.8]} 55. Kg2 {[%clk 0:00:26.4]} 55... Be3
{[%clk 0:00:35.4]} 56. h3 {[%clk 0:00:27.5]} 56... Kg5 {[%clk 0:00:36]} 57. Kf3
{[%clk 0:00:28.8]} 57... Bf4 {[%clk 0:00:37.2]} 58. Bc8 {[%clk 0:00:29.8]} 58...
Kh4 {[%clk 0:00:38.3]} 59. Bd7 {[%clk 0:00:31.4]} 59... Kg5 {[%clk 0:00:38.5]}
60. Bc8 {[%clk 0:00:31.7]} 60... Kf6 {[%clk 0:00:39.9]} 61. Bd7 {[%clk
0:00:32.5]} 61... Ke7 {[%clk 0:00:41.2]} 62. Bc8 {[%clk 0:00:33.1]} 62... Kd8
{[%clk 0:00:42.5]} 63. Ba6 {[%clk 0:00:33.8]} 63... Kd7 {[%clk 0:00:38.2]} 64.
Bb5+ {[%clk 0:00:34.5]} 64... Ke7 {[%clk 0:00:39.6]} 65. Ba6 {[%clk 0:00:34.9]}
65... Bd2 {[%clk 0:00:40.6]} 66. Bc8 {[%clk 0:00:35.2]} 66... Bb4 {[%clk
0:00:39.1]} 67. Ba6 {[%clk 0:00:35.8]} 67... Kf6 {[%clk 0:00:40.4]} 68. Bc8
{[%clk 0:00:36.7]} 68... Kg5 {[%clk 0:00:41.6]} 69. Bd7 {[%clk 0:00:37.2]} 69...
Kf6 {[%clk 0:00:42]} 70. Bc8 {[%clk 0:00:38.2]} 70... Ke7 {[%clk 0:00:43.2]} 71.
Ba6 {[%clk 0:00:37.5]} 71... Ba3 {[%clk 0:00:44.4]} 72. Bb7 {[%clk 0:00:37.2]}
72... Kd7 {[%clk 0:00:44.3]} 73. Bc6+ {[%clk 0:00:35.7]} 73... Kc8 {[%clk
0:00:45.1]} 74. Kg4 {[%clk 0:00:35.1]} 74... Bc1 {[%clk 0:00:44.2]} 75. Bb5
{[%clk 0:00:34.4]} 75... Kb7 {[%clk 0:00:44.4]} 76. h4 {[%clk 0:00:33.6]} 76...
Kc8 {[%clk 0:00:43.1]} 77. Ba6+ {[%clk 0:00:28.6]} 77... Kd8 {[%clk 0:00:44.3]}
78. Bb5 {[%clk 0:00:29.7]} 78... Ke7 {[%clk 0:00:43.3]} 79. h5 {[%clk 0:00:31]}
79... Kf6 {[%clk 0:00:43.1]} 80. hxg6 {[%clk 0:00:31.6]} 80... Kxg6 {[%clk
0:00:42.6]} 81. Bd7 {[%clk 0:00:32.6]} 81... h5+ {[%clk 0:00:42.1]} 82. Kh4
{[%clk 0:00:32.4]} 82... Be3 {[%clk 0:00:41.5]} 83. Bf5+ {[%clk 0:00:32]} 83...
Kh6 {[%clk 0:00:42.5]} 84. Bd7 {[%clk 0:00:32.9]} 84... Bf2+ {[%clk 0:00:43.5]}
85. Kh3 {[%clk 0:00:33.1]} 85... Kg5 {[%clk 0:00:45.1]} 86. Bc8 {[%clk
0:00:32.7]} 86... Kf4 {[%clk 0:00:44.5]} 87. Bf5 {[%clk 0:00:33]} 87... Ke3
{[%clk 0:00:46]} 88. Bg6 {[%clk 0:00:27.8]} 88... Be1 {[%clk 0:00:43.2]} 89.
Bxh5 {[%clk 0:00:19.2]} 89... Kxe4 {[%clk 0:00:44.3]} 90. Be2 {[%clk 0:00:19.6]}
90... Ke3 {[%clk 0:00:43.6]} 91. Bf1 {[%clk 0:00:20.8]} 91... Kf2 {[%clk
0:00:44.5]} 92. Bd3 {[%clk 0:00:21.9]} 92... Ke3 {[%clk 0:00:44.5]} 93. Bf1
{[%clk 0:00:23]} 93... e4 {[%clk 0:00:44.9]} 94. Kg4 {[%clk 0:00:23.1]} 94...
Kf2 {[%clk 0:00:44.9]} 95. Bh3 {[%clk 0:00:23.7]} 95... e3 {[%clk 0:00:46.1]}
96. Kf4 {[%clk 0:00:23.9]} 96... Bb4 {[%clk 0:00:43.7]} 97. Bg4 {[%clk
0:00:23.2]} 97... Bc5 {[%clk 0:00:43.6]} 98. Ke4 {[%clk 0:00:22]} 98... e2
{[%clk 0:00:44.7]} 99. Bxe2 {[%clk 0:00:21.3]} 99... Kxe2 {[%clk 0:00:46]} 100.
Kf5 {[%clk 0:00:22.2]} 100... Kd3 {[%clk 0:00:47.2]} 101. Ke6 {[%clk 0:00:23.1]}
101... Kxc4 {[%clk 0:00:48.5]} 102. Kd7 {[%clk 0:00:24.3]} 102... Kxd5 {[%clk
0:00:49.7]} 103. Kxc7 {[%clk 0:00:25.8]} 103... b5 {[%clk 0:00:51.1]} 0-1

[Event "*** Titled Tuesday 3|2 Blitz"]
[Site "Chess.com"]
[Date "2014.12.30"]
[Round "3"]
[White "LuckyTiger"]
[Black "grandmastergauri"]
[Result "1-0"]
[WhiteElo "2450"]
[BlackElo "2254"]
[TimeControl "180+2"]
[EndTime "11:31:18 PST"]
[Termination "LuckyTiger won by resignation"]

1. e4 {[%clk 0:03:00]} 1... c6 {[%clk 0:02:51.1]} 2. d4 {[%clk 0:03:00.8]} 2...
d5 {[%clk 0:02:52.4]} 3. Nc3 {[%clk 0:03:02.4]} 3... dxe4 {[%clk 0:02:53.4]} 4.
Nxe4 {[%clk 0:03:04.3]} 4... Bf5 {[%clk 0:02:55.1]} 5. Ng3 {[%clk 0:03:05.6]}
5... Bg6 {[%clk 0:02:56.8]} 6. h4 {[%clk 0:03:07.3]} 6... h6 {[%clk 0:02:58.3]}
7. Nf3 {[%clk 0:03:09]} 7... Nd7 {[%clk 0:02:59.7]} 8. h5 {[%clk 0:03:10.7]}
8... Bh7 {[%clk 0:03:00.8]} 9. Bd3 {[%clk 0:03:12.4]} 9... Bxd3 {[%clk
0:03:02.5]} 10. Qxd3 {[%clk 0:03:14.3]} 10... e6 {[%clk 0:03:04.2]} 11. Bd2
{[%clk 0:03:15.7]} 11... Ngf6 {[%clk 0:03:05.5]} 12. O-O-O {[%clk 0:03:16.7]}
12... Be7 {[%clk 0:03:06.8]} 13. Kb1 {[%clk 0:03:18.2]} 13... Qb6 {[%clk
0:03:08]} 14. Nf1 {[%clk 0:02:59.6]} 14... Qb5 {[%clk 0:03:06]} 15. c4 {[%clk
0:02:51.5]} 15... Qa6 {[%clk 0:02:58.4]} 16. Ne3 {[%clk 0:02:34.1]} 16... Rd8
{[%clk 0:02:57.9]} 17. Qc2 {[%clk 0:02:33.1]} 17... b5 {[%clk 0:02:39]} 18. c5
{[%clk 0:02:32.1]} 18... Nd5 {[%clk 0:02:37.2]} 19. g4 {[%clk 0:02:30.1]} 19...
Qa4 {[%clk 0:02:36.5]} 20. b3 {[%clk 0:02:29.5]} 20... Qa6 {[%clk 0:02:35.5]}
21. Nxd5 {[%clk 0:02:28.8]} 21... cxd5 {[%clk 0:02:35.5]} 22. g5 {[%clk
0:02:29.1]} 22... hxg5 {[%clk 0:02:30.9]} 23. Nxg5 {[%clk 0:02:21.6]} 23... Nf6
{[%clk 0:02:27.6]} 24. Rde1 {[%clk 0:02:13.5]} 24... Qc6 {[%clk 0:02:13.9]} 25.
Nxf7 {[%clk 0:02:12.5]} 25... Kxf7 {[%clk 0:02:14.9]} 26. Qg6+ {[%clk
0:02:14.1]} 26... Kf8 {[%clk 0:02:13.1]} 27. h6 {[%clk 0:02:15.7]} 27... gxh6
{[%clk 0:01:29.1]} 28. Bxh6+ {[%clk 0:02:16.2]} 28... Rxh6 {[%clk 0:01:19.7]}
29. Rxh6 {[%clk 0:02:18.1]} 29... Ng8 {[%clk 0:00:42.7]} 30. Rh8 {[%clk
0:02:18.2]} 30... Bf6 {[%clk 0:00:43.9]} 31. Qxf6+ {[%clk 0:02:18.3]} 1-0